Cogmind - Beta 9.4 @@@ ROGUE MODE // 2020.02.22 @ 18:18:59 Player: Alix Result: Destroyed by G-47 Trooper with Particle Gun Performance ------------- Evolutions (2) 1000 Regions Visited (3) 600 Robots Destroyed (59) 295 Value Destroyed (1350) 1350 Prototype IDs (0) 0 Alien Tech Used (0) 0 Bonus (27) 27 TOTAL SCORE: 3272 Bonus ------- High Alert Combat Kills 27 Cogmind --------- Core Integrity 0/550 Matter 219/300 Energy 100/100 System Corruption 0% Temperature Cool (9) Movement Core (300) Ox5 Location -8/Materials Parts ------- > --- POWER (2) -------- (None) > --- PROPULSION (3) --- (None) > --- UTILITY (3) ------ Large Storage Unit Improved Sensor Array > --- WEAPON (3) ------- (None) > --- INVENTORY (10) --- Mini Grenade Launcher Peak State ------------ > --- POWER ------------ Light Ion Engine > --- PROPULSION ------- Armored Wheel Armored Wheel Armored Wheel > --- UTILITY ---------- Large Storage Unit Light Armor Plating > --- WEAPON ----------- Spread Laser Mini Grenade Launcher Plasma Cutter > --- INVENTORY -------- Ion Engine Improved Sensor Array Mini Grenade Launcher [Rating: 15] Favorites ----------- Power Ion Engine Engine Ion Engine Propulsion Light Treads Treads Light Treads Leg Aluminum Leg Wheel Armored Wheel Utility Small Storage Unit Device Improved Sensor Array Storage Small Storage Unit Protection Propulsion Shielding Weapon Small Laser Energy Gun Small Laser Ballistic Gun Assault Rifle Launcher Mini Grenade Launcher Special Weapon Plasma Cutter Build | -11 -10 -9 -8 ------- Run | Scr Mat Mat Mat Slots Evolved 4 | . . 2 2 Power 1 | . . . 1 Propulsion 1 | . . 1 . Utility 1 | . . . 1 Weapon 1 | . . 1 . Parts Attached 41 | 6 12 21 2 Power 6 | 1 2 3 . Engine 6 | 1 2 3 . Core . | . . . . Reactor . | . . . . Propulsion 11 | 2 2 7 . Treads 6 | 2 . 4 . Leg 2 | . 2 . . Wheel 3 | . . 3 . Hover . | . . . . Flight . | . . . . Utility 7 | 1 2 3 1 Device 1 | . . . 1 Storage 2 | 1 . 1 . Processor . | . . . . Hackware . | . . . . Protection 4 | . 2 2 . Artifact . | . . . . Weapon 17 | 2 6 8 1 Energy Gun 9 | 1 4 3 1 Energy Cannon . | . . . . Ballistic Gun 6 | 1 2 3 . Ballistic Cannon . | . . . . Launcher 1 | . . 1 . Special Weapon 1 | . . 1 . Impact Weapon . | . . . . Slashing Weapon . | . . . . Piercing Weapon . | . . . . Special Melee Weapon . | . . . . Unidentified Prototypes . | . . . . Parts Lost 19 | . 2 9 8 Power 2 | . . 1 1 Propulsion 5 | . . 2 3 Utility 2 | . . 1 1 Weapon 10 | . 2 5 3 Highest Loss Streak 8 | . 1 5 8 Average Slot Usage (%) 86 | . 96 83 53 Engine 11 | . 14 10 3 Treads 16 | . 22 15 . Leg 3 | . 5 3 . Wheel 4 | . . 5 16 Storage 11 | . 14 11 9 Protection 11 | . 13 10 6 Energy Gun 11 | . 12 10 6 Ballistic Gun 12 | . 13 13 . Launcher 1 | . . 2 3 Naked Turns . | . . . . Heaviest Build 35 | 13 14 35 27 Greatest Support 43 | 40 40 43 36 Greatest Overweight (x) 5 | . 1 5 . Average Overweight (x) . | . . . . Largest Inventory Capacity 10 | 6 6 10 10 Average Capacity 7 | 5 6 8 10 Most Carried 6 | 2 6 6 3 Average Carried 3 | 1 4 3 1 Final Capacity 10 | 6 6 10 10 Final Carried 4 | 2 4 4 1 Class Distribution -------------------- 57% | Mutant 40% | Tank Dominant Class ---------------- Mutant | -10/Materials Tank | -9/Materials Mutant | -8/Materials Resources | -11 -10 -9 -8 ----------- Run | Scr Mat Mat Mat Matter Collected 857 | 228 280 349 . Remotely . | . . . . Salvage Created 1873 | . 569 1228 76 Parts 104 | . 27 73 4 Haulers Intercepted 1 | . . 1 . Recyclers Shooed 8 | . . 8 . Parts Field Recycled . | . . . . Retrieved Matter . | . . . . Parts Self-Destructed . | . . . . Prevented . | . . . . Kills | -11 -10 -9 -8 ------- Run | Scr Mat Mat Mat Combat Hostiles Destroyed 40 | . 13 25 2 Guns 32 | . 13 17 2 AOE 8 | . . 8 . Classes Destroyed 8 | . 4 4 . Worker 4 | . . 4 . Builder 4 | . . 4 . Hauler 1 | . . 1 . Recycler 6 | . 1 5 . Watcher 4 | . 1 3 . Swarmer 11 | . 3 8 . Grunt 23 | . 10 12 1 Sentry 6 | . . 5 1 Best Kill Streak 12 | . 5 12 2 Combat Bots Only 6 | . 2 6 2 Max Kills in Single Turn 7 | . 1 7 1 Gunslinging 1 | . . 1 . Exploded 3 | . . 3 . Melee . | . . . . Uniques/NPCs Destroyed . | . . . . Combat | -11 -10 -9 -8 -------- Run | Scr Mat Mat Mat Damage Taken 3558 | . 759 1620 1179 Core 902 | . 130 219 553 Absorbed by Shields . | . . . . Core Remaining (%) 64 | 100 48 45 . Volleys Fired 123 | . 53 62 8 Largest 3 | . 2 3 3 Hottest 130 | . 70 119 130 Shots Fired 244 | . 88 142 14 Gun 233 | . 88 133 12 Cannon . | . . . . Launcher 10 | . . 9 1 Special 1 | . . . 1 Kinetic 137 | . 53 84 . Thermal 97 | . 35 49 13 Explosive 10 | . . 9 1 Electromagnetic . | . . . . Robot Hit Streak 13 | . 13 12 8 Robot Miss Streak 6 | . 5 6 4 Penetration Max . | . . . . Secondary Targets 8 | . 2 5 1 Max Gunslinging Chain 1 | . 1 1 1 Shots Hit Robots 159 | . 53 92 14 Core Hits 112 | . 26 70 16 Critical Hits 1 | . 1 . . Critical Kills . | . . . . Critical Parts Destroyed 1 | . 1 . . Melee Attacks . | . . . . Impact . | . . . . Slashing . | . . . . Piercing . | . . . . Sneak Attacks . | . . . . Combat Hostiles . | . . . . Follow-up Attacks . | . . . . Damage Inflicted 3183 | . 672 2269 242 Guns 1767 | . 641 968 158 Cannons . | . . . . Explosions 1290 | . . 1218 72 Melee . | . . . . Ramming 114 | . 31 83 . Kinetic 1004 | . 383 621 . Thermal 775 | . 258 347 170 Explosive 1290 | . . 1218 72 Electromagnetic . | . . . . Impact . | . . . . Slashing . | . . . . Piercing . | . . . . Highest Corruption 2 | . . 2 . Average Corruption 2 | . . 2 . Corruption Purged . | . . . . Effects 21 | . . 21 . Message Errors 6 | . . 6 . Heat Flow Errors 3 | . . 3 . Energy Discharges 1 | . . 1 . Data Loss (minor) 3 | . . 3 . Targeting Errors 7 | . . 7 . Weapon Failures 1 | . . 1 . Overload Shots . | . . . . Overflow Damage 19 | . . 19 . Projectiles . | . . . . Explosions 19 | . . 19 . Melee . | . . . . Knockbacks 2 | . 2 . . Impact 2 | . 2 . . Kinetic . | . . . . Secondary . | . . . . Self-Inflicted Damage 65 | . 3 21 41 Shots 2 | . . 1 1 Rammed 28 | . 9 19 . Targets Rammed 33 | . 13 20 . Kicked 2 | . 2 . . Crushed 3 | . 2 1 . Highest Temperature 382 | . 78 358 382 Average Temperature 93 | . 29 101 186 Received Heat Transfer 1398 | . 318 441 639 Effects 2 | . . 1 1 Energy Bleed 1 | . . 1 . Matter Decay 1 | . . . 1 Siege Activations . | . . . . Robots Corrupted . | . . . . Combat Hostiles . | . . . . Parts Fried . | . . . . Impact Corruptions . | . . . . Robots Melted . | . . . . Combat Hostiles . | . . . . Parts Melted 1 | . 1 . . Heat Transferred 1854 | . 791 821 242 Parts Sabotaged . | . . . . Parts Stolen . | . . . . Parts Stripped . | . . . . Power Chain Reactions . | . . . . Missiles Intercepted . | . . . . Alert | -11 -10 -9 -8 ------- Run | Scr Mat Mat Mat Peak Influence 500 | . 237 500 277 Average Influence 203 | . 109 268 228 Maximum Alert Level 2 | . 1 2 1 Low Security (%) 50 | 100 91 28 . Level 1 41 | . 8 57 100 Level 2 7 | . . 13 . Level 3 . | . . . . Level 4 . | . . . . Level 5 . | . . . . High Security . | . . . . Max Security . | . . . . Squads Dispatched 9 | . 3 5 1 Investigation 3 | . 2 1 . Extermination . | . . . . Reinforcement 6 | . 1 4 1 Assault . | . . . . Garrison . | . . . . Intercept . | . . . . Construction Impeded . | . . . . Haulers Reinforced . | . . . . Stealth | -11 -10 -9 -8 --------- Run | Scr Mat Mat Mat Distress Signals 6 | . 1 3 2 Communications Jammed . | . . . . Distress Signals . | . . . . Times Spotted 70 | . 19 45 6 Peak Tracking Total 7 | . 3 7 5 Tactical Retreats 1 | . 1 . . Traps | -11 -10 -9 -8 ------- Run | Scr Mat Mat Mat Traps Triggered 2 | . 1 1 . Indirectly . | . . . . Trap Hack Attempts . | . . . . Triggered . | . . . . Disarmed . | . . . . Reprogrammed . | . . . . Reused . | . . . . Traps Extracted . | . . . . Installed . | . . . . Triggered . | . . . . Machines | -11 -10 -9 -8 ---------- Run | Scr Mat Mat Mat Machines Disabled 1 | . . 1 . Max in Single Turn 1 | . . 1 . Machines Sabotaged . | . . . . Garrisons Compromised . | . . . . Overloaded Fab Kills . | . . . . Fab Network Shutdowns . | . . . . Hacking | -11 -10 -9 -8 --------- Run | Scr Mat Mat Mat Machines Accessed 6 | . 5 1 . Terminals 3 | . 3 . . Fabricators . | . . . . Repair Stations 1 | . 1 . . Recycling Units 2 | . 1 1 . Scanalyzers . | . . . . Garrison Access . | . . . . Total Hacks 15 | . 14 1 . Successful 10 | . 9 1 . Failed 5 | . 5 . . Catastrophic 1 | . 1 . . Database Lockouts . | . . . . Manual 1 | . . 1 . Terminals 8 | . 8 . . Fabricators . | . . . . Repair Stations 4 | . 4 . . Recycling Units 3 | . 2 1 . Scanalyzers . | . . . . Garrison Access . | . . . . Terminal Hacks 4 | . 4 . . Alert Level 1 | . 1 . . Unreport Threat 1 | . 1 . . Locate Traps 1 | . 1 . . Recall Investigation 1 | . 1 . . Fabricator Hacks . | . . . . Repair Station Hacks 3 | . 3 . . Scan Component 1 | . 1 . . Repair 1 | . 1 . . Refit 1 | . 1 . . Recycling Unit Hacks 3 | . 2 1 . Report Inventory 2 | . 1 1 . Retrieve Matter 1 | . 1 . . Scanalyzer . | . . . . Garrison Access Hacks . | . . . . Unauthorized Hacks . | . . . . Terminals . | . . . . Fabricators . | . . . . Repair Stations . | . . . . Recycling Units . | . . . . Scanalyzers . | . . . . Garrison Access . | . . . . Data Cores Recovered . | . . . . Used . | . . . . Hacking Detections 5 | . 4 1 . Full Trace Events 2 | . 2 . . Feedback Events . | . . . . Feedback Blocked . | . . . . Robot Schematics Acquired . | . . . . Robots Built . | . . . . Matter . | . . . . Time . | . . . . Total Robot Build Rating . | . . . . Part Schematics Acquired . | . . . . Parts Built . | . . . . Matter . | . . . . Time . | . . . . Total Part Build Rating . | . . . . Parts Repaired 1 | . 1 . . Time 26 | . 26 . . Parts Recycled . | . . . . Recycled Matter . | . . . . Retrieved Matter . | . . . . Retrieved Components . | . . . . Parts Scanalyzed . | . . . . Part Schematics Acquired . | . . . . Parts Damaged . | . . . . Bothacking | -11 -10 -9 -8 ------------ Run | Scr Mat Mat Mat Used RIF Installer . | . . . . Robots Hacked . | . . . . Non-combat . | . . . . Combat . | . . . . Robot Hacks Applied . | . . . . Relay Couplers Released . | . . . . Robots Rewired . | . . . . Allies Hacked . | . . . . Hacks Repelled . | . . . . Allies | -11 -10 -9 -8 -------- Run | Scr Mat Mat Mat Total Allies . | . . . . Largest Group . | . . . . Highest-Rated Group . | . . . . Highest-Rated Ally . | . . . . Total Orders . | . . . . Ally Attacks . | . . . . Total Damage . | . . . . Kills . | . . . . Allies Corrupted . | . . . . Allies Melted . | . . . . Intel | -11 -10 -9 -8 ------- Run | Scr Mat Mat Mat Robot Analysis Total . | . . . . Derelict Logs Recovered . | . . . . Drone Launches . | . . . . Drone Recoveries . | . . . . Exploration | -11 -10 -9 -8 ------------- Run | Scr Mat Mat Mat Turns Passed 1986 | 68 671 1125 122 Spaces Moved 998 | 39 296 621 42 Core 5 | 4 . 1 . Treads 589 | 35 196 358 . Legs 187 | . 100 87 . Wheels 217 | . . 175 42 Hover . | . . . . Flight . | . . . . Fastest Speed 50 | 50 120 90 90 Average Speed 137 | 148 147 135 90 Slowest Speed 300 | 160 160 300 90 Overloaded Moves . | . . . . Propulsion Burnouts . | . . . . Robots Hopped . | . . . . Cave-ins Triggered . | . . . . Exploration Rate (%) 27 | 3 46 56 3 Regions Visited 3 Branch Regions . Pre-discovered Areas . | . . . . Known Exits Taken . | . . . . Unknown Exits Taken 3 | 1 1 1 . Scrap Searched . | . . . . Spaces Dug . | . . . . Terrain Destroyed 79 | . . 67 12 Melee . | . . . . Projectile . | . . . . AOE 79 | . . 67 12 Actions | -11 -10 -9 -8 --------- Run | Scr Mat Mat Mat Total 1376 | 46 436 781 113 Wait 151 | . 50 42 59 Move 995 | 38 295 620 42 Hop . | . . . . Pick Up 16 | 2 5 9 . Fast Attach 20 | 6 5 9 . Attach 11 | . 2 7 2 Detach 2 | . 2 . . Swap 10 | . 5 5 . Drop 15 | . 6 7 2 Fire 123 | . 53 62 8 Melee . | . . . . Ram 1 | . . 1 . Kick 4 | . 3 1 . Crush 28 | . 10 18 . Escape Stasis . | . . . . Rewire . | . . . . Trap . | . . . . Miscellaneous . | . . . . Route ------- -11/Scrapyard -10/Materials (discovered 2 exits: *Mat / [*Min]) -9/Materials (discovered 2 exits: [*Mat] / [*Min]) -8/Materials History --------- Turn | Location | Event 8 | -11/Scrapyard | Discovered new exit (range 15) 69 | -11/Scrapyard | Entered Materials 310 | -10/Materials | Build established: Mutant 369 | -10/Materials | Repaired Assault Rifle 399 | -10/Materials | Discovered new exit (range 14) 580 | -10/Materials | Core integrity fell below 50% 716 | -10/Materials | Discovered new exit (range 16) 740 | -10/Materials | Entered another Materials area 740 | -9/Materials | Evolved 2 slots: Propulsion x1, Weapon x1 1240 | -9/Materials | Build established: Tank 1507 | -9/Materials | Discovered new exit (range 8) 1695 | -9/Materials | Lost 5 parts (1p2n1u1w) 1705 | -9/Materials | Core integrity fell below 50% 1836 | -9/Materials | Discovered new exit (range 6) 1865 | -9/Materials | Entered another Materials area 1865 | -8/Materials | Evolved 2 slots: Power x1, Utility x1 1960 | -8/Materials | Core integrity fell below 50% 1974 | -8/Materials | Lost 8 parts (1p3n1u3w) 1978 | -8/Materials | Core integrity fell below 20% 1987 | -8/Materials | Destroyed by G-47 Trooper with Particle Gun Last Messages --------------- W-25 Informer sends out distress signal. Plasma Cutter destroyed. Dropped Mni. Grenade Launcher. Y-45 Defender destroyed. Switching to secondary target: G-47 Trooper. Lgt. Ion Engine destroyed. G-47 Trooper destroyed. Spread Laser destroyed. U-05 Engineer lays Concrete. Arm. Wheel destroyed. U-05 Engineer builds a Wall. U-05 Engineer lays Concrete. Overheating: Matter decay (-43). Arm. Wheel destroyed. U-05 Engineer builds a Wall. Spread Laser destroyed. U-05 Engineer builds a Wall. Arm. Wheel destroyed. Lgt. Armor Plating destroyed. U-05 Engineer lays Concrete. Map ----- +----------------------------------------------------+ | ????????????????????????????????????????? | | ????????????????????????????????????????? | | ????????????????????????????????????????? | | ????????????????????????????????????????? | | ????????????????????????????????????????? | | ????????????????????????????????????????? | | ????????????????????????????????????????? | | ????????????????????????????????????????? | | ????????????????????????????????????????? | | ????????????????????????????????????????? | | ????????????????????????????????????????? | | ????????????????????????????????????????? | | ????????????????????????????????????????? | | ??????????????????#?????????????????????? | | ????????????????? #?????????????????????? | | ????????????????? #?????????????????????? | | ????????????????? #?????????????????????? | | ????????????????? #?????????????????????? | | ????????????????? #?????????????????????? | | ??????????????????#?????????????????????? | | ????????????????? #?????????????????????? | | ???????????????## ##????????????????????? | | ???????????????##=###???????????????????? | | ???????????????[#u# #???????????????????? | | ?????????########gg%#???????????????????? | | ?????????# @uu #???????????????????? | | ######???# #???????????????????? | | # ##### """ """ #???????????????????? | | # T # # """ """ ##???????????????????? | | # # + """ """ #????????????????????? | | # # # o #????????????????????? | | # + # ! #????????????????????? | | # # # #????????????????????? | | # # * ###########????????????????????? | | # # #??????????????????????????????? | | # #####??????????????????????????????? | | ######??????????????????????????????????? | | ????????????????????????????????????????? | | ????????????????????????????????????????? | | ????????????????????????????????????????? | | ????????????????????????????????????????? | | ????????????????????????????????????????? | | ????????????????????????????????????????? | | ????????????????????????????????????????? | | ????????????????????????????????????????? | | ????????????????????????????????????????? | | | | | | | | | +----------------------------------------------------+ Best States ------------- Heat Dissipation 31 Energy Generation 12 Energy Capacity 265 Matter Stores 300 Matter Capacity 300 Sight Range 16 Robot Scan Range 13 Terrain Scan Density 10 Armor Coverage 150 Propulsion Shielding 33 Evasion (%) 42 Recoil Reduction 2 Item Schematics ----------------- None Robot Schematics ------------------ None Fabricated ------------ Nothing Alien Tech Used ----------------- None Achievements -------------- GoHome() Challenges ------------ None Game ------ Seed MachineThermalSabre Manual? 0 Play Time 00:33:13 Cumulative 7.8 hours Start 2020.02.05 @ 16:55:22 End 2020.02.22 @ 18:18:59 Sessions 3 Manual Loads 0 Difficulty Rogue Special Mode None Game No. 9 Rogue 6 Adventurer 3 Explorer 0 Win Type - Total 0 Types 0/0/0/0/0/0/0 Lore% 6 Gallery% 10 Achievement% 12 Wizard Run 0 Options --------- ASCII 0 Keyboard 0 Movement Numpad Keybinds 0 Fullscreen 2 Font 32/Terminus Map View 76x50 Tactical HUD 0 Map Filters NONE Filters NONE Steam 1 RUN: fa7d5583-fd04-422c-8ff0-f43a6d6236c1